bitfinex/quotes_SOLUSD_20230111
["timestamp","ask_amount","ask_price","bid_price","bid_amount"]
[1673467834564,1270.0,15.932,15.927,17.0]
[1673467834769,20.0,15.931,15.927,17.0]
[1673467846028,20.0,15.931,15.919,47.12]
[1673467846227,20.0,15.931,15.916,47.13]
[1673467846439,20.0,15.931,15.916,56.83591187]
[1673467846649,20.0,15.931,15.918,47.13]
[1673467847404,20.0,15.931,15.919,17.0]
[1673467847607,67.09,15.931,15.919,17.0]
[1673467847818,20.0,15.931,15.919,17.0]
[1673467848975,20.0,15.931,15.919,32.77483643]
[1673467849177,20.0,15.931,15.92,1.92]
[1673467854747,1270.0,15.932,15.92,1.92]
[1673467854956,1270.0,15.932,15.921,15.77483643]
[1673467855174,1270.0,15.932,15.922,18.92]
[1673467855490,1270.0,15.932,15.922,34.69483643]
[1673467856759,47.05,15.943,15.924,20.0]
[1673467857074,47.05,15.943,15.93,17.9]
[1673467857282,109.7181,15.944,15.931,17.96]
[1673467857499,109.7181,15.944,15.931,34.69483643]
[1673467857708,109.7181,15.944,15.932,15.77483643]
[1673467857914,20.0,15.943,15.933,18.92]
[1673467859081,20.0,15.943,15.934,15.77483643]
[1673467859384,1250.0,15.942,15.935,18.92]
[1673467859589,20.0,15.942,15.935,18.92]
[1673467860217,20.0,15.942,15.935,60.34323322]
[1673467860957,1250.0,15.943,15.935,76.11806965]
[1673467861153,20.0,15.947,15.936,20.0]
[1673467861368,20.0,15.947,15.937,18.92]
[1673467861576,20.0,15.947,15.938,20.0]
[1673467861790,20.0,15.947,15.939,18.92]
[1673467862428,20.0,15.947,15.939,17.0]
[1673467863482,20.0,15.947,15.939,32.77483643]
[1673467863691,20.0,15.947,15.94,1.92]
[1673467864311,20.0,15.947,15.939,17.0]
[1673467864735,20.0,15.947,15.94,8.9355263]
[1673467864947,20.0,15.947,15.941,17.0]
[1673467867059,47.04,15.946,15.93,47.09]
[1673467867266,47.04,15.946,15.925,108.1657]
[1673467867267,47.04,15.946,15.927,47.1]
[1673467867488,20.0,15.945,15.927,88.16107544]
[1673467867676,20.0,15.943,15.927,88.16107544]
[1673467867895,20.0,15.943,15.928,15.77483643]
[1673467868615,20.0,15.943,15.929,47.09]
[1673467869067,20.0,15.943,15.93,15.77483643]
[1673467869246,20.0,15.943,15.931,1.92]
[1673467869584,20.0,15.943,15.931,18.92]
[1673467870504,20.0,15.943,15.931,34.69483643]
[1673467871373,20.0,15.947,15.932,20.0]
[1673467871690,20.0,15.947,15.933,95.75591187]
[1673467871892,20.0,15.947,15.934,47.08]
[1673467872106,20.0,15.947,15.935,38.92]
[1673467872312,20.0,15.947,15.936,47.07]
[1673467872524,20.0,15.948,15.937,38.92]
[1673467872735,20.0,15.948,15.938,47.07]
[1673467872940,20.0,15.948,15.939,18.92]
[1673467873261,20.0,15.948,15.939,34.69483643]
[1673467873465,20.0,15.948,15.94,15.77483643]
[1673467873677,20.0,15.948,15.941,18.92]
[1673467876741,20.0,15.948,15.941,0.96]
[1673467876924,20.0,15.948,15.94,15.77483643]
[1673467878420,158.3604,15.952,15.941,18.92]
[1673467878651,47.01,15.956,15.941,65.98]
[1673467878946,157.0964,15.958,15.942,16.31914727]
[1673467879152,157.0964,15.958,15.943,18.92]
[1673467879367,47.01,15.956,15.943,12.69]
[1673467879890,20.0,15.956,15.944,16.31914727]
[1673467880415,20.0,15.954,15.944,16.31914727]
[1673467880822,20.0,15.954,15.943,12.69]
[1673467881028,20.0,15.954,15.943,0.96]
[1673467881462,20.0,15.954,15.944,16.31914727]
[1673467881664,20.0,15.954,15.945,18.92]
[1673467883887,67.02,15.954,15.945,18.92]
[1673467884092,20.0,15.954,15.945,18.92]
[1673467885229,20.0,15.955,15.945,35.23914727]
[1673467885440,20.0,15.956,15.946,67.04]
[1673467885646,20.0,15.956,15.947,18.92]
[1673467885876,20.0,15.957,15.948,20.0]
[1673467886072,110.0864,15.958,15.949,18.92]
[1673467886317,20.0,15.957,15.949,35.23914727]
[1673467886529,20.0,15.96,15.949,35.23914727]
[1673467886752,1250.0,15.969,15.958,89.62229087]
[1673467886968,17.76,15.99,15.959,93.54683978]
[1673467887165,17.76,15.99,15.959,86.61480978]
[1673467887166,6.93312,15.989,15.959,86.61480978]
[1673467887373,46.92,15.988,15.959,86.61480978]
[1673467887581,26.93312,15.987,15.959,86.61480978]
[1673467887898,17.85,15.98,15.96,17.5646338]
[1673467888128,160.2122,15.979,15.961,18.92]
[1673467888430,20.0,15.978,15.961,19.61480978]
[1673467888749,46.95,15.977,15.962,84.5646338]
[1673467888958,66.95,15.978,15.963,17.96]
[1673467889151,20.0,15.978,15.964,67.95]
[1673467889364,20.0,15.978,15.965,17.96]
[1673467889691,20.0,15.978,15.966,66.98]
[1673467889900,66.95,15.978,15.967,18.92]
[1673467890120,20.0,15.978,15.968,20.0]
[1673467890313,46.94,15.981,15.969,18.92]
[1673467890940,66.94,15.982,15.969,83.4646338]
[1673467891151,20.0,15.982,15.969,83.4646338]
[1673467892106,20.0,15.982,15.969,65.9]
[1673467892431,20.0,15.982,15.969,18.92]
[1673467892641,1270.0,15.982,15.967,46.98]
[1673467892830,46.94,15.981,15.968,20.0]
[1673467893045,20.0,15.98,15.967,17.5646338]
[1673467893372,20.0,15.98,15.968,20.0]
[1673467893799,20.0,15.98,15.968,37.5646338]
[1673467894849,20.0,15.98,15.969,83.4646338]
[1673467895250,20.0,15.98,15.97,17.5646338]
[1673467895456,1270.0,15.982,15.971,65.89]
[1673467895880,1270.0,15.982,15.972,17.5646338]
[1673467896101,1270.0,15.982,15.973,65.88]
[1673467896321,1270.0,15.982,15.973,18.92]
[1673467896531,1270.0,15.982,15.974,17.5646338]
[1673467896736,1270.0,15.982,15.975,18.92]
[1673467896937,1270.0,15.982,15.976,17.0]
[1673467897152,1270.0,15.982,15.977,1.92]
[1673467897469,1270.0,15.982,15.978,1.92]
[1673467897682,1270.0,15.982,15.975,0.96]
[1673467897908,46.92,15.987,15.973,17.96]
[1673467897909,46.91,15.991,15.974,0.96]
[1673467898093,46.91,15.991,15.976,64.5146338]
[1673467898422,20.0,15.99,15.977,17.96]
[1673467898635,20.0,15.99,15.978,20.0]
[1673467898957,20.0,15.988,15.967,46.98]
[1673467899163,20.0,15.986,15.964,46.99]
[1673467899574,46.93,15.985,15.963,46.99]
[1673467899899,20.0,15.984,15.963,46.99]
[1673467900093,20.0,15.982,15.963,46.99]
[1673467900505,20.0,15.982,15.964,17.5646338]
[1673467900717,20.0,15.986,15.97,17.75]
[1673467900946,20.0,15.986,15.971,66.97]
[1673467901170,20.0,15.986,15.971,84.5346338]
[1673467901482,20.0,15.986,15.972,17.5646338]
[1673467901663,20.0,15.986,15.973,85.88]
[1673467902084,20.0,15.986,15.974,17.5646338]
[1673467902299,20.0,15.986,15.975,65.88]
[1673467902725,20.0,15.986,15.976,37.5646338]
[1673467902948,20.0,15.986,15.977,18.92]
[1673467903144,20.0,15.986,15.978,20.0]
[1673467903477,20.0,15.986,15.979,18.92]
[1673467905345,20.0,15.986,15.979,17.0]
[1673467906519,19.0,15.986,15.979,17.0]
[1673467909878,19.0,15.986,15.978,20.0]
[1673467910193,19.0,15.986,15.976,20.0]
[1673467910411,19.0,15.986,15.977,17.0]
[1673467910599,19.0,15.986,15.978,20.0]
[1673467911021,17.5,15.986,15.978,20.0]
[1673467911436,17.5,15.986,15.979,17.0]
[1673467912806,17.5,15.986,15.978,20.0]
[1673467913017,17.5,15.986,15.973,20.0]
[1673467913233,48.85,15.985,15.967,46.98]
[1673467913433,48.85,15.985,15.968,17.5646338]
[1673467913768,20.0,15.983,15.968,17.5646338]
[1673467913963,20.0,15.981,15.968,17.5646338]
[1673467914172,20.0,15.979,15.968,17.5646338]
[1673467914594,20.0,15.979,15.964,46.99]
[1673467914920,20.0,15.979,15.965,17.5646338]
[1673467915114,20.0,15.979,15.966,20.0]
[1673467915658,20.0,15.979,15.966,37.5646338]
[1673467916498,46.94,15.98,15.967,37.96]
[1673467916707,66.94,15.981,15.968,20.0]
[1673467916917,20.0,15.981,15.969,17.96]
[1673467917129,20.0,15.981,15.97,0.96]
[1673467917327,20.0,15.981,15.971,0.96]
[1673467917963,20.0,15.981,15.972,0.96]
[1673467918477,20.0,15.981,15.973,0.96]
[1673467918700,117.4286,15.984,15.973,65.4846338]
[1673467918909,117.4286,15.984,15.974,35.5246338]
[1673467919114,117.4286,15.984,15.975,67.92]
[1673467919322,117.4286,15.984,15.976,17.0]
[1673467919535,20.0,15.983,15.976,17.0]
[1673467919741,20.0,15.983,15.977,20.0]
[1673467919971,20.0,15.983,15.978,17.0]
[1673467920171,20.0,15.983,15.979,20.0]
[1673467920379,20.0,15.983,15.974,17.5646338]
[1673467920587,20.0,15.983,15.967,46.98]
[1673467920800,20.0,15.981,15.969,17.5646338]
[1673467921015,20.0,15.981,15.969,64.5446338]
[1673467921237,20.0,15.981,15.969,17.5646338]
[1673467922798,20.0,15.981,15.97,46.97]
[1673467923126,20.0,15.981,15.966,64.5446338]
[1673467923323,20.0,15.981,15.97,17.5646338]
[1673467923762,116.1983,15.984,15.971,18.92]
[1673467923974,116.3309,15.989,15.972,20.0]
[1673467924180,116.3309,15.989,15.976,2.4200559]
[1673467924389,116.3309,15.989,15.977,1.92]
[1673467924720,20.0,15.988,15.977,36.4846338]
[1673467924911,20.0,15.988,15.978,17.5646338]
[1673467925122,20.0,15.988,15.979,38.92]
[1673467925343,20.0,15.988,15.979,37.0]
[1673467926064,20.0,15.988,15.98,1.92]
[1673467926275,20.0,15.987,15.979,17.0]
[1673467926485,20.0,15.986,15.979,17.0]
[1673467926709,66.93,15.986,15.979,17.0]
[1673467927112,66.93,15.986,15.976,2.4200559]
[1673467927546,66.93,15.986,15.976,5.59e-05]
[1673467927762,1.92,15.985,15.966,46.98]
[1673467927975,46.93,15.984,15.967,20.0]
[1673467928187,1.92,15.983,15.967,20.0]
[1673467928383,46.94,15.982,15.967,20.0]
[1673467928589,46.94,15.982,15.962,47.0]
[1673467928590,41.92,15.981,15.962,47.0]
[1673467928798,20.0,15.979,15.962,17.5646338]
[1673467929024,20.0,15.979,15.958,47.01]
[1673467929025,48.87,15.978,15.958,47.01]
[1673467929240,20.0,15.976,15.961,17.5646338]
[1673467929453,46.96,15.975,15.961,17.5646338]
[1673467929635,20.0,15.976,15.962,47.0]
[1673467929636,66.95,15.976,15.962,47.0]
[1673467929852,66.95,15.976,15.963,17.96]
[1673467930061,66.95,15.976,15.963,36.4846338]
[1673467930812,66.95,15.976,15.963,17.5646338]
[1673467932282,1.92,15.975,15.963,17.5646338]
[1673467932502,20.0,15.973,15.956,47.01]
[1673467932685,48.89,15.972,15.957,37.5646338]
[1673467932900,20.0,15.971,15.957,20.0]
[1673467933111,48.89,15.97,15.953,37.5646338]
[1673467933320,48.89,15.97,15.953,20.0]
[1673467933321,37.0,15.969,15.953,20.0]
[1673467933531,46.98,15.968,15.952,20.0]
[1673467933757,20.0,15.967,15.953,47.02]
[1673467933970,20.0,15.967,15.954,37.5646338]
[1673467934367,20.0,15.967,15.955,17.5646338]
[1673467934586,20.0,15.967,15.956,20.0]
[1673467934922,20.0,15.967,15.956,37.5646338]
[1673467935313,20.0,15.967,15.957,18.92]
[1673467935552,20.0,15.967,15.958,20.0]
[1673467935741,20.0,15.967,15.959,18.92]
[1673467935947,20.0,15.967,15.958,20.0]
[1673467936281,20.0,15.967,15.956,17.5646338]
[1673467936484,20.0,15.967,15.957,20.0]
[1673467937307,20.0,15.967,15.958,18.92]
[1673467937732,20.0,15.967,15.959,20.0]
[1673467937958,20.0,15.967,15.96,17.0]
[1673467938819,20.0,15.967,15.959,20.0]
[1673467939037,20.0,15.967,15.932,142.28311753]
[1673467939038,20.0,15.967,15.955,17.5646338]
[1673467939345,20.0,15.967,15.951,47.03]
[1673467939346,0.96,15.966,15.951,47.03]
[1673467939565,46.99,15.965,15.951,47.03]
[1673467939748,20.96,15.964,15.951,17.5646338]
[1673467940174,46.99,15.963,15.946,47.04]
[1673467940404,46.99,15.963,15.945,47.05]
[1673467940610,46.99,15.963,15.947,17.5646338]
[1673467940819,137.1062,15.962,15.948,47.04]
[1673467941142,137.1062,15.962,15.948,64.6046338]
[1673467941344,137.1062,15.962,15.949,18.92]
[1673467941668,137.1062,15.962,15.948,17.5646338]
[1673467941669,20.0,15.961,15.948,17.5646338]
[1673467941856,28.7,15.96,15.945,47.05]
[1673467942069,47.0,15.959,15.941,64.6246338]
[1673467942281,1.92,15.958,15.941,64.6246338]
[1673467942501,47.01,15.957,15.941,64.6246338]
[1673467942712,47.01,15.957,15.942,20.0]
[1673467942922,47.01,15.958,15.943,47.05]
[1673467943135,20.0,15.959,15.944,40.0]
[1673467943343,20.0,15.959,15.945,48.97]
[1673467943662,20.0,15.959,15.946,20.0]
[1673467943869,20.0,15.959,15.947,18.92]
[1673467944082,20.0,15.959,15.948,20.0]
[1673467944286,20.0,15.959,15.949,18.92]
[1673467944708,20.0,15.959,15.949,36.4846338]
[1673467944922,20.0,15.959,15.95,35.1292676]
[1673467945133,20.0,15.959,15.951,18.92]
[1673467945330,20.0,15.959,15.951,17.0]
[1673467947641,20.0,15.958,15.948,20.0]
[1673467947848,1.92,15.957,15.944,20.0]
[1673467948056,1.92,15.957,15.943,17.5646338]
[1673467948261,20.0,15.956,15.944,20.0]
[1673467948810,1.92,15.955,15.944,20.0]
[1673467949001,1.92,15.955,15.942,20.0]
[1673467949643,1.92,15.955,15.94,47.06]
[1673467949846,1.92,15.955,15.938,64.6346338]
[1673467949847,47.02,15.954,15.938,64.6346338]
[1673467950180,0.96,15.953,15.938,17.5646338]
[1673467950368,20.0,15.951,15.938,17.5646338]
[1673467950694,20.0,15.951,15.939,18.92]
[1673467952167,20.0,15.951,15.938,17.5646338]
[1673467952384,20.0,15.951,15.939,20.0]
[1673467952787,20.0,15.951,15.939,37.5646338]
[1673467952997,20.0,15.951,15.939,20.0]
[1673467953214,20.0,15.951,15.939,67.06]
[1673467953871,95.75,15.95,15.935,47.08]
[1673467954055,95.75,15.95,15.933,47.08]
[1673467954275,95.75,15.95,15.931,47.09]
[1673467954684,37.0,15.949,15.928,47.1]
[1673467954896,48.96,15.948,15.928,82.2292676]
[1673467955117,37.0,15.947,15.929,17.5646338]
[1673467955324,48.96,15.946,15.929,17.5646338]
[1673467955525,20.0,15.945,15.929,17.5646338]
[1673467955724,48.01,15.944,15.929,17.5646338]
[1673467955937,48.97,15.944,15.929,17.5646338]
[1673467956483,20.0,15.943,15.929,17.5646338]
[1673467956785,1.92,15.942,15.929,17.5646338]
[1673467957007,1.92,15.942,15.924,47.11]
[1673467957192,20.0,15.943,15.925,37.5646338]
[1673467957408,20.0,15.943,15.926,47.1]
[1673467957632,20.0,15.943,15.927,38.92]
[1673467957837,20.0,15.943,15.928,47.1]
[1673467958035,20.0,15.943,15.929,38.92]
[1673467958474,20.0,15.943,15.929,56.4846338]
[1673467958880,20.0,15.943,15.93,46.5]
[1673467959098,20.0,15.943,15.931,18.92]
[1673467959300,1270.0,15.943,15.931,18.92]
[1673467959512,20.0,15.942,15.931,18.92]
[1673467960685,47.06,15.941,15.929,20.0]
[1673467960895,48.98,15.941,15.926,20.0]
[1673467961110,48.98,15.941,15.926,67.1]
[1673467961315,48.98,15.941,15.926,84.6646338]
[1673467961524,20.0,15.94,15.926,20.0]
[1673467961733,1.92,15.939,15.925,20.0]
[1673467961947,1.92,15.939,15.926,47.1]
[1673467961948,20.0,15.937,15.926,47.1]
[1673467962141,20.0,15.937,15.927,20.0]
[1673467962881,20.0,15.937,15.928,17.0]
[1673467963091,20.0,15.937,15.929,20.0]
[1673467963517,20.0,15.937,15.93,17.0]
[1673467967313,20.0,15.937,15.929,20.0]
[1673467967502,20.0,15.937,15.924,20.0]
[1673467967713,20.0,15.937,15.925,62.89]
[1673467968024,20.0,15.937,15.926,20.0]
[1673467968258,20.0,15.937,15.927,17.0]
[1673467968662,20.0,15.937,15.928,20.0]
[1673467968871,20.0,15.937,15.929,17.0]
[1673467971201,20.0,15.937,15.928,20.0]
[1673467971516,20.0,15.937,15.924,37.5646338]
[1673467971723,0.96,15.936,15.925,43.16]
[1673467971918,0.96,15.936,15.926,20.0]
[1673467972131,20.0,15.937,15.926,20.0]
[1673467972558,20.0,15.937,15.927,17.0]
[1673467972782,20.0,15.937,15.928,20.0]
[1673467972988,20.0,15.937,15.929,17.0]
[1673467973198,0.96,15.936,15.928,20.0]
[1673467973930,20.0,15.937,15.928,20.0]
[1673467974145,20.0,15.937,15.922,20.0]
[1673467974357,20.0,15.937,15.923,39.64]
[1673467974568,20.0,15.937,15.924,20.0]
[1673467974780,0.96,15.936,15.925,40.07]
[1673467974990,20.0,15.937,15.926,20.0]
[1673467975422,0.96,15.936,15.927,17.0]
[1673467975614,0.96,15.936,15.928,20.0]
[1673467976252,0.96,15.935,15.922,20.0]
[1673467976561,0.96,15.934,15.923,42.44]
[1673467976783,0.96,15.934,15.924,20.0]
[1673467976989,0.96,15.934,15.925,41.25]
[1673467977188,1250.0,15.933,15.919,40.88]
[1673467977400,20.0,15.932,15.92,1.92]
[1673467977611,20.0,15.932,15.921,40.88]
[1673467977939,20.0,15.932,15.92,1.92]
[1673467978152,114.0531,15.939,15.921,43.44]
[1673467978347,20.0,15.938,15.922,21.92]
[1673467978549,20.0,15.938,15.923,63.19]
[1673467978783,20.0,15.938,15.924,1.92]
[1673467978979,20.0,15.938,15.925,47.11]
[1673467979184,20.0,15.938,15.926,38.92]
[1673467979400,20.0,15.938,15.927,47.1]
[1673467979617,20.0,15.938,15.928,37.0]
[1673467980032,20.0,15.938,15.929,0.96]
[1673467980242,20.0,15.938,15.93,0.96]
[1673467980455,20.0,15.938,15.931,0.96]
[1673467981411,20.0,15.942,15.932,0.96]
[1673467981622,114.4983,15.952,15.932,0.96]
[1673467981623,114.4983,15.952,15.933,48.04]
[1673467981816,114.4983,15.952,15.934,37.96]
[1673467982151,114.4983,15.952,15.935,47.08]
[1673467982344,20.0,15.95,15.936,38.92]
[1673467982549,20.0,15.95,15.937,47.07]
[1673467982764,20.0,15.95,15.938,38.92]
[1673467983817,20.0,15.95,15.939,47.06]
[1673467984032,20.0,15.95,15.94,18.92]
[1673467984235,20.0,15.95,15.941,47.06]
[1673467984566,20.0,15.95,15.942,18.92]
[1673467990877,20.0,15.95,15.939,47.06]
[1673467991716,1250.0,15.951,15.94,37.87]
[1673467991931,114.4983,15.952,15.941,47.06]
[1673467992117,114.4983,15.952,15.942,38.92]
[1673467992334,114.4983,15.952,15.943,47.05]
[1673467992536,114.4983,15.952,15.944,18.92]
[1673467992746,20.0,15.957,15.945,67.05]
[1673467993061,20.0,15.957,15.946,17.0]
[1673467993278,0.96,15.956,15.946,17.0]
[1673467993498,0.96,15.956,15.947,20.0]
[1673467993691,0.96,15.956,15.948,17.0]
[1673467994126,0.96,15.956,15.949,20.0]
[1673467996651,20.0,15.957,15.949,20.0]
[1673467996867,20.0,15.957,15.95,17.0]
[1673468002338,136.2303,15.958,15.95,17.0]
[1673468002654,20.0,15.957,15.95,17.0]
[1673468004748,20.0,15.957,15.949,20.0]
[1673468004967,20.0,15.957,15.946,20.0]
[1673468005155,20.0,15.957,15.947,64.04]
[1673468005370,0.96,15.956,15.948,20.0]
[1673468011394,20.0,15.957,15.949,17.0]
[1673468011575,135.3379,15.96,15.949,64.03]
[1673468011911,115.3379,15.96,15.95,1.92]
[1673468012106,115.3379,15.96,15.951,47.03]
[1673468012318,115.3379,15.96,15.952,17.0]
[1673468013578,20.0,15.965,15.952,17.0]
[1673468013794,20.0,15.965,15.953,49.66409897]
[1673468014114,20.0,15.965,15.954,17.0]
[1673468014311,20.0,15.965,15.955,1.92]
[1673468015489,20.0,15.965,15.954,17.0]
[1673468015701,46.99,15.964,15.954,17.0]
[1673468015883,20.0,15.963,15.954,17.0]
[1673468016530,20.0,15.965,15.954,17.0]
[1673468016849,20.0,15.965,15.956,0.68028107]
[1673468017065,20.0,15.966,15.956,17.68028107]
[1673468017268,137.3604,15.967,15.957,1.92]
[1673468017474,137.3604,15.967,15.958,0.72298617]
[1673468017683,117.3604,15.967,15.958,0.72298617]
[1673468017902,117.3604,15.967,15.958,17.72298617]
[1673468018093,117.3604,15.967,15.959,20.0]
[1673468018417,117.3604,15.967,15.96,17.84810804]
[1673468018838,20.0,15.966,15.96,0.84810804]
[1673468019047,20.0,15.966,15.959,20.0]
[1673468019258,20.0,15.966,15.955,20.71467388]
[1673468019469,20.0,15.966,15.956,65.93]
[1673468019683,20.0,15.966,15.957,20.71467388]
[1673468019992,20.0,15.966,15.959,0.68588296]
[1673468020316,20.0,15.966,15.959,20.0]
[1673468020639,20.0,15.966,15.955,20.0]
[1673468020947,66.98,15.966,15.953,47.02]
[1673468021135,20.0,15.966,15.954,20.0]
[1673468021597,20.0,15.966,15.952,20.0]
[1673468021808,20.0,15.966,15.953,47.02]
[1673468022141,20.0,15.966,15.954,20.0]
[1673468022459,20.0,15.966,15.955,17.0]
[1673468022663,20.0,15.966,15.956,20.0]
[1673468022855,20.0,15.966,15.957,17.0]
[1673468023286,20.0,15.966,15.958,20.0]
[1673468023508,46.99,15.965,15.95,47.03]
[1673468023810,46.99,15.965,15.948,47.04]
[1673468023811,20.0,15.964,15.948,47.04]
[1673468024237,0.96,15.963,15.948,47.04]
[1673468024458,1.92,15.963,15.948,47.04]
[1673468024764,20.0,15.962,15.948,47.04]
[1673468024956,1.92,15.961,15.948,47.04]
[1673468025389,1.92,15.961,15.945,47.05]
[1673468025611,20.0,15.959,15.945,47.05]
[1673468026948,20.0,15.959,15.943,47.05]
[1673468027175,20.0,15.959,15.944,20.0]
[1673468027381,20.0,15.959,15.945,47.05]
[1673468027594,20.0,15.959,15.946,20.0]
[1673468027804,20.0,15.959,15.947,48.0]
[1673468028018,20.0,15.959,15.948,20.0]
[1673468028226,20.0,15.959,15.949,64.03]
[1673468029724,20.0,15.959,15.948,20.0]
[1673468029943,1.92,15.958,15.944,20.0]
[1673468030134,20.0,15.957,15.945,65.01]
[1673468030347,20.0,15.957,15.946,20.0]
[1673468030659,20.0,15.957,15.947,64.04]
[1673468031076,20.0,15.957,15.948,20.0]
[1673468032334,20.0,15.957,15.949,17.0]
[1673468032975,20.0,15.957,15.948,20.0]
[1673468033184,1.92,15.956,15.947,20.0]
[1673468033404,1.92,15.956,15.943,20.0]
[1673468033607,1.92,15.956,15.944,64.05]
[1673468033807,1.92,15.956,15.945,20.0]
[1673468034023,1.92,15.956,15.946,64.04]
[1673468034234,1.92,15.956,15.947,20.0]
[1673468038762,20.0,15.957,15.948,47.04]
[1673468038963,20.0,15.957,15.949,17.0]
[1673468039813,20.0,15.957,15.95,47.03]
[1673468040008,20.0,15.957,15.951,17.0]
[1673468040565,20.0,15.959,15.951,17.0]
[1673468040755,20.0,15.961,15.952,1.92]
[1673468040961,20.0,15.961,15.952,48.95]
[1673468041175,20.0,15.961,15.953,17.0]
[1673468041926,116.7461,15.96,15.953,17.0]
[1673468042139,20.0,15.959,15.948,47.04]
[1673468042331,20.0,15.959,15.949,37.96]
[1673468042540,20.0,15.959,15.95,47.99]
[1673468042751,20.0,15.959,15.951,17.0]
[1673468050428,20.0,15.959,15.95,17.0]
[1673468055921,67.0,15.959,15.95,17.0]
[1673468056107,20.0,15.959,15.95,17.0]
[1673468058433,116.7461,15.96,15.95,17.0]
[1673468058648,116.7461,15.96,15.951,1.92]
[1673468059001,1250.0,15.962,15.952,47.03]
[1673468059278,1250.0,15.965,15.953,18.92]
[1673468059469,20.0,15.964,15.953,18.92]
[1673468059893,20.0,15.964,15.954,17.0]
[1673468060126,20.0,15.964,15.952,17.0]
[1673468063897,20.0,15.965,15.952,17.0]
[1673468067486,20.0,15.965,15.953,47.02]
[1673468067684,20.0,15.966,15.954,17.0]
[1673468067895,20.0,15.966,15.953,47.02]
[1673468068106,20.0,15.966,15.954,17.0]
[1673468068951,66.98,15.966,15.954,17.0]
[1673468069281,20.0,15.966,15.954,17.0]
[1673468069781,1413.6452,15.967,15.955,1.92]
[1673468069999,1366.6652,15.967,15.955,1.92]
[1673468070214,1366.6652,15.967,15.955,68.94]
[1673468070415,1366.6652,15.967,15.956,17.0]
[1673468070627,1366.6652,15.967,15.957,21.92]
[1673468070945,1366.6652,15.967,15.958,17.0]
[1673468071155,1366.6652,15.967,15.959,20.0]
[1673468071500,1366.6652,15.967,15.96,17.0]
[1673468075899,20.0,15.966,15.96,17.0]
[1673468076727,1366.6652,15.967,15.96,17.0]